[Event "Open NK Rapid 2025 bord 26-50"]
[Site "Helmond, Netherlands"]
[Date "2025.05.03"]
[Round "6.6"]
[White "Geboers, Jimmy"]
[Black "Omnes, Tiago"]
[Result "1-0"]
[TimeControl "15 min +5 sec increment"]
[WhiteFideId "262919"]
[BlackFideId "1091867"]
[WhiteElo "2065"]
[BlackElo "1813"]

1. d4 {[%clk 00:15:07]} {[%emt 00:00:02]} Nf6 {[%clk 00:14:44]} {[%emt
00:00:27]} 2. c4 {[%clk 00:15:10]} {[%emt 00:00:01]} g6 {[%clk 00:14:46]}
{[%emt 00:00:04]} 3. Nc3 {[%clk 00:15:12]} {[%emt 00:00:02]} Bg7 {[%clk
00:14:49]} {[%emt 00:00:02]} 4. e4 {[%clk 00:15:15]} {[%emt 00:00:02]} d6
{[%clk 00:14:53]} {[%emt 00:00:02]} 5. f4 {[%clk 00:15:18]} {[%emt 00:00:02]}
O-O {[%clk 00:14:47]} {[%emt 00:00:10]} 6. Nf3 {[%clk 00:15:20]} {[%emt
00:00:03]} Bg4 {[%clk 00:14:37]} {[%emt 00:00:15]} 7. Be2 {[%clk 00:15:20]}
{[%emt 00:00:04]} Nbd7 {[%clk 00:14:24]} {[%emt 00:00:20]} 8. e5 {[%clk
00:15:22]} {[%emt 00:00:02]} dxe5 {[%clk 00:14:19]} {[%emt 00:00:11]} 9. dxe5
{[%clk 00:15:16]} {[%emt 00:00:10]} Ne8 {[%clk 00:13:48]} {[%emt 00:00:36]} 10.
Be3 {[%clk 00:15:17]} {[%emt 00:00:04]} c6 {[%clk 00:13:39]} {[%emt 00:00:15]}
11. O-O {[%clk 00:14:53]} {[%emt 00:00:29]} Nc7 {[%clk 00:13:08]} {[%emt
00:00:35]} 12. Qb3 {[%clk 00:14:48]} {[%emt 00:00:10]} Qc8 {[%clk 00:12:14]}
{[%emt 00:00:59]} 13. h3 {[%clk 00:14:39]} {[%emt 00:00:14]} Bxf3 {[%clk
00:11:21]} {[%emt 00:00:58]} 14. Bxf3 {[%clk 00:14:40]} {[%emt 00:00:03]} Ne6
{[%clk 00:11:23]} {[%emt 00:00:04]} 15. Bg4 {[%clk 00:14:19]} {[%emt 00:00:25]}
f5 {[%clk 00:10:35]} {[%emt 00:00:54]} 16. c5 {[%clk 00:14:05]} {[%emt
00:00:19]} Ndxc5 {[%clk 00:09:15]} {[%emt 00:01:26]} 17. Bxc5 {[%clk 00:13:57]}
{[%emt 00:00:12]} fxg4 {[%clk 00:09:17]} {[%emt 00:00:04]} 18. hxg4 {[%clk
00:12:46]} {[%emt 00:01:15]} Kh8 {[%clk 00:08:53]} {[%emt 00:00:29]} 19. Be3
{[%clk 00:12:48]} {[%emt 00:00:02]} Bh6 {[%clk 00:08:24]} {[%emt 00:00:35]} 20.
g5 {[%clk 00:12:50]} {[%emt 00:00:03]} Bg7 {[%clk 00:08:27]} {[%emt 00:00:01]}
21. Rad1 {[%clk 00:12:33]} {[%emt 00:00:23]} Nc7 {[%clk 00:07:23]} {[%emt
00:01:09]} 22. Qc2 {[%clk 00:11:50]} {[%emt 00:00:49]} Qe6 {[%clk 00:06:10]}
{[%emt 00:01:18]} 23. Rd2 {[%clk 00:11:03]} {[%emt 00:00:52]} b6 {[%clk
00:03:48]} {[%emt 00:02:27]} 24. Qd3 {[%clk 00:10:32]} {[%emt 00:00:34]} Nb5
{[%clk 00:02:11]} {[%emt 00:01:43]} 25. Nxb5 {[%clk 00:08:28]} {[%emt
00:02:09]} cxb5 {[%clk 00:02:14]} {[%emt 00:00:03]} 26. b3 {[%clk 00:08:29]}
{[%emt 00:00:03]} a6 {[%clk 00:01:46]} {[%emt 00:00:34]} 27. Qd7 {[%clk
00:08:10]} {[%emt 00:00:23]} Qxd7 {[%clk 00:01:16]} {[%emt 00:00:35]} 28. Rxd7
{[%clk 00:08:12]} {[%emt 00:00:03]} e6 {[%clk 00:00:59]} {[%emt 00:00:22]} 29.
Re7 {[%clk 00:07:15]} {[%emt 00:01:01]} Rfe8 {[%clk 00:00:34]} {[%emt
00:00:31]} 30. Rxe8+ {[%clk 00:07:17]} {[%emt 00:00:03]} Rxe8 {[%clk 00:00:39]}
31. Bxb6 {[%clk 00:07:18]} {[%emt 00:00:05]} Kg8 {[%clk 00:00:30]} {[%emt
00:00:14]} 32. Rd1 {[%clk 00:07:12]} {[%emt 00:00:11]} Kf7 {[%clk 00:00:15]}
{[%emt 00:00:20]} 33. Rd7+ {[%clk 00:07:08]} {[%emt 00:00:09]} Re7 {[%clk
00:00:19]} 34. Rd6 {[%clk 00:07:10]} {[%emt 00:00:02]} Rb7 {[%clk 00:00:19]}
{[%emt 00:00:06]} 35. Be3 {[%clk 00:06:59]} {[%emt 00:00:15]} a5 {[%clk
00:00:23]} {[%emt 00:00:01]} 36. Ra6 {[%clk 00:07:03]} {[%emt 00:00:02]} a4
{[%clk 00:00:23]} {[%emt 00:00:05]} 37. bxa4 {[%clk 00:07:02]} {[%emt
00:00:05]} bxa4 {[%clk 00:00:27]} {[%emt 00:00:01]} 38. Rxa4 {[%clk 00:07:05]}
{[%emt 00:00:02]} Rb1+ {[%clk 00:00:31]} {[%emt 00:00:02]} 39. Kf2 {[%clk
00:07:06]} {[%emt 00:00:04]} Rb2+ {[%clk 00:00:35]} 40. Kf3 {[%clk 00:07:10]}
{[%emt 00:00:01]} Rb7 {[%clk 00:00:27]} {[%emt 00:00:13]} 41. Ra7 {[%clk
00:07:13]} {[%emt 00:00:02]} Rxa7 {[%clk 00:00:27]} {[%emt 00:00:06]} 42. Bxa7
{[%clk 00:07:15]} {[%emt 00:00:01]} Bf8 {[%clk 00:00:28]} {[%emt 00:00:04]} 43.
a4 {[%clk 00:07:19]} {[%emt 00:00:02]} Bb4 {[%clk 00:00:32]} {[%emt 00:00:01]}
44. Bb6 {[%clk 00:07:16]} {[%emt 00:00:07]} Ke7 {[%clk 00:00:31]} {[%emt
00:00:07]} 45. a5 {[%clk 00:07:19]} {[%emt 00:00:01]} Kd7 {[%clk 00:00:36]} 46.
a6 {[%clk 00:07:20]} {[%emt 00:00:04]} Kc6 {[%clk 00:00:39]} {[%emt 00:00:02]}
47. a7 {[%clk 00:07:22]} {[%emt 00:00:03]} Kb7 {[%clk 00:00:43]} {[%emt
00:00:01]} 48. g4 {[%clk 00:07:15]} {[%emt 00:00:11]} Bc3 {[%clk 00:00:33]}
{[%emt 00:00:16]} 49. Ke4 {[%clk 00:07:17]} {[%emt 00:00:03]} Bb4 {[%clk
00:00:33]} {[%emt 00:00:06]} 50. f5 {[%clk 00:07:14]} {[%emt 00:00:07]} exf5+
{[%clk 00:00:32]} {[%emt 00:00:06]} 51. gxf5 {[%clk 00:07:17]} {[%emt
00:00:02]} gxf5+ {[%clk 00:00:35]} {[%emt 00:00:02]} 52. Kxf5 {[%clk 00:07:19]}
{[%emt 00:00:02]} Be7 {[%clk 00:00:36]} {[%emt 00:00:05]} 53. g6 {[%clk
00:07:16]} {[%emt 00:00:06]} hxg6+ {[%clk 00:00:35]} {[%emt 00:00:08]} 54. Kxg6
{[%clk 00:07:19]} {[%emt 00:00:02]} Bb4 {[%clk 00:00:32]} {[%emt 00:00:08]} 55.
Kf7 {[%clk 00:07:09]} {[%emt 00:00:14]} Ba3 {[%clk 00:00:22]} {[%emt 00:00:16]}
56. e6 {[%clk 00:07:10]} {[%emt 00:00:03]} Bb4 {[%clk 00:00:26]} {[%emt
00:00:02]} 57. Kf6 {[%clk 00:05:45]} {[%emt 00:01:30]} Bc3+ {[%clk 00:00:18]}
{[%emt 00:00:13]} 58. Kf5 {[%clk 00:05:46]} {[%emt 00:00:03]} Bb4 {[%clk
00:00:21]} {[%emt 00:00:03]} 59. Ke4 {[%clk 00:05:46]} {[%emt 00:00:05]} Be7
{[%clk 00:00:19]} {[%emt 00:00:07]} 60. Kd5 {[%clk 00:05:46]} {[%emt 00:00:04]}
Ba3 {[%clk 00:00:13]} {[%emt 00:00:12]} 61. Bc5 {[%clk 00:05:46]} {[%emt
00:00:12]} 1-0

[Event "Open NK Rapid 2025 bord 26-50"]
[Site "Helmond, Netherlands"]
[Date "2025.05.03"]
[Round "6.7"]
[White "Roebers, Jan"]
[Black "Khatniuk, Anastasiia"]
[Result "1-0"]
[TimeControl "15 min +5 sec increment"]
[WhiteFideId "1007815"]
[BlackFideId "14179105"]
[WhiteElo "2058"]
[BlackElo "1822"]

1. e4 {[%clk 00:15:07]} {[%emt 00:00:02]} c5 {[%clk 00:15:09]} {[%emt
00:00:02]} 2. a3 {[%clk 00:15:10]} {[%emt 00:00:02]} e6 {[%clk 00:14:23]}
{[%emt 00:00:50]} 3. Nf3 {[%clk 00:15:09]} {[%emt 00:00:06]} Nc6 {[%clk
00:14:20]} {[%emt 00:00:08]} 4. d4 {[%clk 00:15:10]} {[%emt 00:00:04]} cxd4
{[%clk 00:14:18]} {[%emt 00:00:07]} 5. Nxd4 {[%clk 00:15:13]} {[%emt 00:00:02]}
a6 {[%clk 00:14:13]} {[%emt 00:00:11]} 6. Nc3 {[%clk 00:15:05]} {[%emt
00:00:13]} Qc7 {[%clk 00:14:14]} {[%emt 00:00:04]} 7. Be3 {[%clk 00:14:48]}
{[%emt 00:00:21]} b5 {[%clk 00:13:38]} {[%emt 00:00:41]} 8. Qd2 {[%clk
00:14:24]} {[%emt 00:00:29]} Be7 {[%clk 00:13:21]} {[%emt 00:00:22]} 9. Be2
{[%clk 00:13:30]} {[%emt 00:00:59]} Nf6 {[%clk 00:13:23]} {[%emt 00:00:03]} 10.
f4 {[%clk 00:13:11]} {[%emt 00:00:24]} d6 {[%clk 00:13:14]} {[%emt 00:00:15]}
11. O-O {[%clk 00:12:49]} {[%emt 00:00:27]} O-O {[%clk 00:13:07]} {[%emt
00:00:11]} 12. e5 {[%clk 00:09:50]} {[%emt 00:03:04]} dxe5 {[%clk 00:12:21]}
{[%emt 00:00:51]} 13. Nxc6 {[%clk 00:09:53]} {[%emt 00:00:03]} Qxc6 {[%clk
00:12:24]} {[%emt 00:00:01]} 14. fxe5 {[%clk 00:09:55]} {[%emt 00:00:03]} Rd8
{[%clk 00:12:12]} {[%emt 00:00:16]} 15. Bf3 {[%clk 00:09:33]} {[%emt 00:00:28]}
Nd5 {[%clk 00:11:29]} {[%emt 00:00:48]} 16. Qf2 {[%clk 00:06:26]} {[%emt
00:03:12]} Qe8 {[%clk 00:11:31]} {[%emt 00:00:04]} 17. Bh5 {[%clk 00:06:02]}
{[%emt 00:00:28]} g6 {[%clk 00:11:14]} {[%emt 00:00:22]} 18. Nxd5 {[%clk
00:06:03]} {[%emt 00:00:04]} exd5 {[%clk 00:11:15]} {[%emt 00:00:04]} 19. Bf3
{[%clk 00:05:46]} {[%emt 00:00:22]} Be6 {[%clk 00:10:44]} {[%emt 00:00:36]} 20.
c3 {[%clk 00:05:38]} {[%emt 00:00:14]} Rac8 {[%clk 00:10:31]} {[%emt 00:00:18]}
21. Rad1 {[%clk 00:05:30]} {[%emt 00:00:13]} Kg7 {[%clk 00:08:56]} {[%emt
00:01:40]} 22. Rd2 {[%clk 00:04:44]} {[%emt 00:00:51]} Rc4 {[%clk 00:07:56]}
{[%emt 00:01:05]} 23. Rfd1 {[%clk 00:04:24]} {[%emt 00:00:24]} Qc6 {[%clk
00:07:35]} {[%emt 00:00:26]} 24. Bd4 {[%clk 00:03:33]} {[%emt 00:00:57]} Bg5
{[%clk 00:07:08]} {[%emt 00:00:31]} 25. Re2 {[%clk 00:03:08]} {[%emt 00:00:30]}
Qb7 {[%clk 00:06:58]} {[%emt 00:00:15]} 26. Qg3 {[%clk 00:02:44]} {[%emt
00:00:29]} Be7 {[%clk 00:06:55]} {[%emt 00:00:09]} 27. Rf2 {[%clk 00:02:23]}
{[%emt 00:00:26]} Qd7 {[%clk 00:06:09]} {[%emt 00:00:51]} 28. Be2 {[%clk
00:02:16]} {[%emt 00:00:12]} Rc6 {[%clk 00:06:12]} {[%emt 00:00:02]} 29. Bd3
{[%clk 00:02:12]} {[%emt 00:00:09]} h5 {[%clk 00:05:16]} {[%emt 00:01:00]} 30.
h4 {[%clk 00:01:45]} {[%emt 00:00:32]} Bg4 {[%clk 00:04:55]} {[%emt 00:00:27]}
31. e6+ {[%clk 00:01:41]} {[%emt 00:00:09]} 1-0

[Event "Open NK Rapid 2025 bord 26-50"]
[Site "Helmond, Netherlands"]
[Date "2025.05.03"]
[Round "6.8"]
[White "Kolijn, David"]
[Black "Kshirsagar, Pranav"]
[Result "0-1"]
[TimeControl "15 min +5 sec increment"]
[WhiteFideId "1099213"]
[BlackFideId "1084011"]
[WhiteElo "1812"]
[BlackElo "2049"]

1. e4 {[%clk 00:15:08]} {[%emt 00:00:01]} c6 {[%clk 00:15:10]} {[%emt
00:00:01]} 2. d4 {[%clk 00:15:11]} {[%emt 00:00:02]} d5 {[%clk 00:15:14]}
{[%emt 00:00:01]} 3. e5 {[%clk 00:14:47]} {[%emt 00:00:28]} c5 {[%clk
00:15:18]} {[%emt 00:00:02]} 4. dxc5 {[%clk 00:14:48]} {[%emt 00:00:04]} e6
{[%clk 00:15:21]} 5. a3 {[%clk 00:14:50]} {[%emt 00:00:04]} Nd7 {[%clk
00:15:20]} {[%emt 00:00:06]} 6. Nf3 {[%clk 00:13:49]} {[%emt 00:01:06]} Bxc5
{[%clk 00:15:19]} {[%emt 00:00:06]} 7. b4 {[%clk 00:13:13]} {[%emt 00:00:42]}
Be7 {[%clk 00:15:08]} {[%emt 00:00:16]} 8. Bd3 {[%clk 00:12:44]} {[%emt
00:00:34]} f6 {[%clk 00:14:46]} {[%emt 00:00:27]} 9. Bb2 {[%clk 00:12:04]}
{[%emt 00:00:45]} Nh6 {[%clk 00:12:07]} {[%emt 00:02:43]} 10. Qe2 {[%clk
00:11:12]} {[%emt 00:00:58]} fxe5 {[%clk 00:10:30]} {[%emt 00:01:42]} 11. Nxe5
{[%clk 00:08:16]} {[%emt 00:03:01]} Nxe5 {[%clk 00:09:15]} {[%emt 00:01:20]} 12.
Bxe5 {[%clk 00:07:43]} {[%emt 00:00:38]} O-O {[%clk 00:08:41]} {[%emt
00:00:39]} 13. O-O {[%clk 00:06:53]} {[%emt 00:00:54]} Bf6 {[%clk 00:08:44]}
{[%emt 00:00:02]} 14. Rd1 {[%clk 00:05:45]} {[%emt 00:01:14]} Nf7 {[%clk
00:06:49]} {[%emt 00:02:01]} 15. Bxf6 {[%clk 00:04:57]} {[%emt 00:00:52]} Qxf6
{[%clk 00:06:52]} 16. Ra2 {[%clk 00:03:41]} {[%emt 00:01:21]} e5 {[%clk
00:06:46]} {[%emt 00:00:12]} 17. Bb5 {[%clk 00:02:25]} {[%emt 00:01:21]} Be6
{[%clk 00:06:33]} {[%emt 00:00:18]} 18. Nc3 {[%clk 00:01:48]} {[%emt 00:00:41]}
a6 {[%clk 00:06:30]} {[%emt 00:00:08]} 19. Ba4 {[%clk 00:01:38]} {[%emt
00:00:15]} d4 {[%clk 00:06:33]} {[%emt 00:00:02]} 20. Ne4 {[%clk 00:01:42]}
{[%emt 00:00:01]} Qg6 {[%clk 00:05:59]} {[%emt 00:00:39]} 21. Rb2 {[%clk
00:01:46]} {[%emt 00:00:02]} Bd5 {[%clk 00:05:54]} {[%emt 00:00:11]} 22. f3
{[%clk 00:01:40]} {[%emt 00:00:10]} Bxe4 {[%clk 00:04:17]} {[%emt 00:01:42]} 23.
Qxe4 {[%clk 00:01:43]} {[%emt 00:00:01]} Qxe4 {[%clk 00:03:53]} {[%emt
00:00:30]} 24. fxe4 {[%clk 00:01:46]} Nd6 {[%clk 00:03:25]} {[%emt 00:00:34]}
25. Bb3+ {[%clk 00:01:50]} Kh8 {[%emt 00:00:01]} 26. Bd5 {[%clk 00:01:38]}
{[%emt 00:00:16]} Rac8 {[%clk 00:03:32]} {[%emt 00:00:03]} 27. g3 {[%emt
00:01:07]} Rc3 {[%clk 00:03:05]} 28. a4 {[%clk 00:00:25]} {[%emt 00:00:47]} g6
{[%clk 00:02:51]} {[%emt 00:00:20]} 29. Rd3 {[%clk 00:00:07]} {[%emt 00:00:23]}
Rfc8 {[%clk 00:02:48]} {[%emt 00:00:08]} 30. Rxc3 {[%clk 00:00:09]} {[%emt
00:00:03]} Rxc3 {[%clk 00:02:52]} {[%emt 00:00:01]} 31. Kf2 {[%clk 00:00:12]}
{[%emt 00:00:02]} Kg7 {[%clk 00:02:42]} {[%emt 00:00:14]} 32. b5 {[%clk
00:00:12]} {[%emt 00:00:06]} a5 {[%clk 00:02:47]} 33. Kg2 {[%clk 00:00:09]}
{[%emt 00:00:08]} b6 {[%clk 00:02:51]} {[%emt 00:00:01]} 34. Kf2 {[%clk
00:00:08]} {[%emt 00:00:06]} Ra3 {[%clk 00:02:37]} {[%emt 00:00:19]} 35. Bb3
{[%clk 00:00:06]} {[%emt 00:00:07]} Nxe4+ {[%clk 00:02:40]} {[%emt 00:00:01]}
36. Kf3 {[%clk 00:00:10]} {[%emt 00:00:02]} Nc5 {[%clk 00:02:32]} {[%emt
00:00:13]} 37. Rb1 {[%clk 00:00:12]} {[%emt 00:00:03]} Nxa4 {[%clk 00:02:12]}
{[%emt 00:00:25]} 0-1

[Event "Open NK Rapid 2025 bord 26-50"]
[Site "Helmond, Netherlands"]
[Date "2025.05.03"]
[Round "6.9"]
[White "Van Beek, Harmen"]
[Black "Klein, Ron"]
[Result "0-1"]
[TimeControl "15 min +5 sec increment"]
[WhiteFideId "40100022"]
[BlackFideId "1014668"]
[WhiteElo "1806"]
[BlackElo "2014"]

1. e4 {[%clk 00:15:08]} {[%emt 00:00:02]} d5 {[%clk 00:15:02]} {[%emt
00:00:09]} 2. exd5 {[%clk 00:15:08]} {[%emt 00:00:05]} Qxd5 {[%clk 00:15:06]} 3.
Nc3 {[%clk 00:15:09]} {[%emt 00:00:04]} Qa5 {[%clk 00:15:09]} {[%emt 00:00:01]}
4. d4 {[%clk 00:15:06]} {[%emt 00:00:08]} Bf5 {[%clk 00:15:10]} {[%emt
00:00:04]} 5. Nf3 {[%clk 00:14:58]} {[%emt 00:00:14]} Nf6 {[%clk 00:15:12]}
{[%emt 00:00:03]} 6. Bd3 {[%clk 00:14:01]} {[%emt 00:01:02]} e6 {[%clk
00:15:05]} {[%emt 00:00:12]} 7. Bxf5 {[%clk 00:13:49]} {[%emt 00:00:18]} Qxf5
{[%clk 00:15:07]} {[%emt 00:00:02]} 8. Be3 {[%clk 00:12:45]} {[%emt 00:01:09]}
Bb4 {[%clk 00:14:56]} {[%emt 00:00:16]} 9. O-O {[%clk 00:12:16]} {[%emt
00:00:33]} O-O {[%clk 00:14:36]} {[%emt 00:00:26]} 10. Ne2 {[%clk 00:10:40]}
{[%emt 00:01:41]} Nbd7 {[%clk 00:12:19]} {[%emt 00:02:22]} 11. Ng3 {[%clk
00:10:22]} {[%emt 00:00:23]} Qd5 {[%clk 00:12:10]} {[%emt 00:00:14]} 12. Bf4
{[%clk 00:09:16]} {[%emt 00:01:12]} Bd6 {[%clk 00:11:55]} {[%emt 00:00:19]} 13.
Bxd6 {[%clk 00:09:11]} {[%emt 00:00:10]} Qxd6 {[%clk 00:11:58]} {[%emt
00:00:02]} 14. Re1 {[%clk 00:08:53]} {[%emt 00:00:23]} Rad8 {[%clk 00:11:33]}
{[%emt 00:00:30]} 15. Qe2 {[%clk 00:07:57]} {[%emt 00:01:01]} c5 {[%clk
00:11:19]} {[%emt 00:00:19]} 16. Rad1 {[%clk 00:07:23]} {[%emt 00:00:39]} Qb6
{[%clk 00:10:59]} {[%emt 00:00:25]} 17. c3 {[%clk 00:06:31]} {[%emt 00:00:57]}
cxd4 {[%clk 00:10:03]} {[%emt 00:01:00]} 18. Nxd4 {[%clk 00:06:20]} {[%emt
00:00:17]} Nc5 {[%clk 00:09:41]} {[%emt 00:00:27]} 19. Nh5 {[%clk 00:04:23]}
{[%emt 00:02:02]} Nxh5 {[%clk 00:08:49]} {[%emt 00:00:57]} 20. Qxh5 {[%clk
00:04:27]} {[%emt 00:00:01]} Rd5 {[%clk 00:08:47]} {[%emt 00:00:06]} 21. Qe2
{[%clk 00:04:18]} {[%emt 00:00:14]} Rfd8 {[%clk 00:08:42]} {[%emt 00:00:10]} 22.
Nf3 {[%clk 00:03:06]} {[%emt 00:01:17]} Nd3 {[%clk 00:08:30]} {[%emt 00:00:17]}
23. Rf1 {[%clk 00:02:11]} {[%emt 00:01:01]} h6 {[%clk 00:07:32]} {[%emt
00:01:03]} 24. Nd4 {[%clk 00:01:40]} {[%emt 00:00:37]} Nf4 {[%clk 00:07:03]}
{[%emt 00:00:33]} 25. Qf3 {[%clk 00:01:34]} {[%emt 00:00:11]} e5 {[%clk
00:06:48]} {[%emt 00:00:20]} 26. Nb3 {[%clk 00:00:51]} {[%emt 00:00:49]} e4
{[%clk 00:06:16]} {[%emt 00:00:36]} 27. Qg4 {[%clk 00:00:19]} {[%emt 00:00:37]}
h5 {[%clk 00:06:04]} {[%emt 00:00:18]} 28. Qxf4 {[%clk 00:00:00]} {[%emt
00:00:19]} 0-1

[Event "Open NK Rapid 2025 bord 26-50"]
[Site "Helmond, Netherlands"]
[Date "2025.05.03"]
[Round "6.10"]
[White "Uyttenhove, Pearl"]
[Black "Blijlevens, Pim"]
[Result "0-1"]
[TimeControl "15 min +5 sec increment"]
[WhiteFideId "1052560"]
[BlackFideId "1022997"]
[WhiteElo "1802"]
[BlackElo "1969"]

1. d4 {[%clk 00:15:04]} {[%emt 00:00:05]} e6 {[%clk 00:15:09]} {[%emt
00:00:01]} 2. Nc3 {[%clk 00:15:05]} {[%emt 00:00:05]} Bb4 {[%clk 00:15:10]}
{[%emt 00:00:04]} 3. Bf4 {[%clk 00:15:05]} {[%emt 00:00:05]} f5 {[%clk
00:14:58]} {[%emt 00:00:16]} 4. e3 {[%clk 00:15:00]} {[%emt 00:00:10]} Nf6
{[%clk 00:15:00]} {[%emt 00:00:03]} 5. Bd3 {[%clk 00:14:49]} {[%emt 00:00:16]}
O-O {[%clk 00:14:00]} {[%emt 00:01:05]} 6. h4 {[%clk 00:14:34]} {[%emt
00:00:21]} d6 {[%clk 00:13:17]} {[%emt 00:00:48]} 7. a3 {[%clk 00:14:16]}
{[%emt 00:00:22]} Bxc3+ {[%clk 00:13:17]} {[%emt 00:00:06]} 8. bxc3 {[%clk
00:14:19]} {[%emt 00:00:02]} Qe7 {[%clk 00:13:18]} {[%emt 00:00:03]} 9. h5
{[%clk 00:14:05]} {[%emt 00:00:19]} Nd5 {[%clk 00:13:14]} {[%emt 00:00:09]} 10.
c4 {[%clk 00:13:36]} {[%emt 00:00:34]} Nxf4 {[%clk 00:13:17]} {[%emt 00:00:03]}
11. exf4 {[%clk 00:13:39]} {[%emt 00:00:01]} Nc6 {[%clk 00:12:58]} {[%emt
00:00:25]} 12. Nf3 {[%clk 00:13:40]} {[%emt 00:00:03]} e5 {[%clk 00:11:47]}
{[%emt 00:01:16]} 13. fxe5 {[%clk 00:13:03]} {[%emt 00:00:42]} dxe5 {[%clk
00:11:44]} {[%emt 00:00:09]} 14. dxe5 {[%clk 00:11:49]} {[%emt 00:01:19]} Nxe5
{[%clk 00:11:40]} {[%emt 00:00:09]} 15. O-O {[%clk 00:11:09]} {[%emt 00:00:44]}
Ng4 {[%clk 00:10:21]} {[%emt 00:01:24]} 16. Re1 {[%clk 00:10:58]} {[%emt
00:00:16]} Qc5 {[%clk 00:09:35]} {[%emt 00:00:51]} 17. Qd2 {[%clk 00:10:38]}
{[%emt 00:00:25]} Bd7 {[%clk 00:09:35]} {[%emt 00:00:05]} 18. Re2 {[%clk
00:09:43]} {[%emt 00:01:01]} Rae8 {[%clk 00:09:20]} {[%emt 00:00:20]} 19. c3
{[%clk 00:08:20]} {[%emt 00:01:28]} Qd6 {[%clk 00:07:39]} {[%emt 00:01:46]} 20.
Rxe8 {[%clk 00:07:40]} {[%emt 00:00:44]} Rxe8 {[%clk 00:07:03]} {[%emt
00:00:41]} 21. Qc2 {[%clk 00:07:08]} {[%emt 00:00:37]} Qf4 {[%clk 00:06:26]}
{[%emt 00:00:43]} 22. Rb1 {[%clk 00:05:58]} {[%emt 00:01:14]} Bc6 {[%clk
00:06:30]} {[%emt 00:00:02]} 23. Bxf5 {[%clk 00:03:42]} {[%emt 00:02:21]} Bxf3
{[%clk 00:06:32]} {[%emt 00:00:03]} 24. Bxh7+ {[%clk 00:03:32]} {[%emt
00:00:15]} Kh8 {[%clk 00:06:31]} {[%emt 00:00:06]} 25. g3 {[%clk 00:02:26]}
{[%emt 00:01:11]} Qe5 {[%clk 00:05:33]} {[%emt 00:00:59]} 0-1

[Event "Open NK Rapid 2025 bord 26-50"]
[Site "Helmond, Netherlands"]
[Date "2025.05.03"]
[Round "6.11"]
[White "Fransen, Jean-Paul"]
[Black "Sleeckx, Alexander"]
[Result "1-0"]
[TimeControl "15 min +5 sec increment"]
[WhiteFideId "40101487"]
[BlackFideId "1091972"]
[WhiteElo "1964"]
[BlackElo "1813"]

1. e4 {[%clk 00:15:09]} c5 {[%clk 00:15:07]} {[%emt 00:00:04]} 2. b4 {[%clk
00:15:12]} {[%emt 00:00:01]} cxb4 {[%clk 00:15:03]} {[%emt 00:00:09]} 3. a3
{[%clk 00:15:15]} {[%emt 00:00:02]} e5 {[%clk 00:14:59]} {[%emt 00:00:09]} 4.
axb4 {[%clk 00:15:18]} {[%emt 00:00:02]} Nf6 {[%clk 00:14:33]} {[%emt
00:00:31]} 5. c3 {[%clk 00:14:45]} {[%emt 00:00:38]} d5 {[%clk 00:14:21]}
{[%emt 00:00:17]} 6. exd5 {[%clk 00:14:44]} {[%emt 00:00:06]} Qxd5 {[%clk
00:14:17]} {[%emt 00:00:09]} 7. Na3 {[%clk 00:14:15]} {[%emt 00:00:34]} Be7
{[%clk 00:13:12]} {[%emt 00:01:11]} 8. Nb5 {[%clk 00:13:15]} {[%emt 00:01:04]}
Bd8 {[%clk 00:12:25]} {[%emt 00:00:52]} 9. c4 {[%clk 00:11:44]} {[%emt
00:01:33]} Qe6 {[%clk 00:11:45]} {[%emt 00:00:49]} 10. Nf3 {[%clk 00:10:03]}
{[%emt 00:01:46]} Nc6 {[%clk 00:11:41]} {[%emt 00:00:09]} 11. c5 {[%clk
00:08:22]} {[%emt 00:01:45]} O-O {[%clk 00:11:36]} {[%emt 00:00:11]} 12. Nd6
{[%clk 00:08:04]} {[%emt 00:00:22]} e4 {[%clk 00:10:35]} {[%emt 00:01:07]} 13.
Bc4 {[%clk 00:06:36]} {[%emt 00:01:32]} Qg4 {[%clk 00:10:33]} {[%emt 00:00:07]}
14. Nxf7 {[%clk 00:04:12]} {[%emt 00:02:30]} Rxf7 {[%clk 00:10:08]} {[%emt
00:00:30]} 15. Qb3 {[%clk 00:04:07]} {[%emt 00:00:09]} exf3 {[%clk 00:09:41]}
{[%emt 00:00:32]} 16. Bxf7+ {[%clk 00:04:01]} {[%emt 00:00:12]} Kf8 {[%clk
00:08:52]} {[%emt 00:00:54]} 17. gxf3 {[%clk 00:03:55]} {[%emt 00:00:11]} Qg2
{[%clk 00:08:37]} {[%emt 00:00:19]} 18. Rf1 {[%clk 00:03:43]} {[%emt 00:00:17]}
Bh3 {[%clk 00:07:43]} {[%emt 00:00:59]} 19. Bc4 {[%clk 00:03:45]} {[%emt
00:00:03]} Nd4 {[%clk 00:07:12]} {[%emt 00:00:35]} 20. Qc3 {[%clk 00:03:01]}
{[%emt 00:00:50]} Nxf3+ {[%clk 00:06:45]} {[%emt 00:00:32]} 21. Kd1 {[%clk
00:02:59]} {[%emt 00:00:06]} Qg4 {[%clk 00:05:55]} {[%emt 00:00:56]} 22. Kc2
{[%clk 00:02:32]} {[%emt 00:00:32]} Bxf1 {[%clk 00:05:46]} {[%emt 00:00:14]} 23.
Bxf1 {[%clk 00:02:35]} {[%emt 00:00:02]} Bc7 {[%clk 00:05:34]} {[%emt
00:00:17]} 24. c6 {[%clk 00:02:05]} {[%emt 00:00:36]} b6 {[%clk 00:04:44]}
{[%emt 00:00:55]} 25. b5 {[%clk 00:01:53]} {[%emt 00:00:17]} Be5 {[%clk
00:04:29]} {[%emt 00:00:20]} 26. Qa3+ {[%clk 00:01:43]} {[%emt 00:00:15]} Ke8
{[%clk 00:03:27]} {[%emt 00:01:07]} 27. Rb1 {[%clk 00:01:46]} {[%emt 00:00:01]}
Ne1+ {[%clk 00:02:56]} {[%emt 00:00:36]} 28. Kb3 {[%clk 00:01:42]} {[%emt
00:00:09]} Qf3+ {[%clk 00:02:22]} {[%emt 00:00:39]} 29. Ka2 {[%clk 00:01:36]}
{[%emt 00:00:11]} Qxa3+ {[%clk 00:02:14]} {[%emt 00:00:13]} 30. Bxa3 {[%clk
00:01:40]} {[%emt 00:00:02]} Nc2 {[%clk 00:01:54]} {[%emt 00:00:25]} 31. d4
{[%clk 00:01:04]} {[%emt 00:00:40]} Nxa3 {[%emt 00:00:21]} 32. Re1 {[%clk
00:01:02]} Nc2 {[%clk 00:01:25]} {[%emt 00:00:26]} 33. Rxe5+ {[%clk 00:01:05]}
{[%emt 00:00:02]} Kf7 {[%clk 00:01:08]} {[%emt 00:00:21]} 34. Bc4+ {[%clk
00:01:07]} {[%emt 00:00:03]} Kf8 {[%clk 00:01:04]} {[%emt 00:00:10]} 35. d5
{[%clk 00:01:11]} Nd4 {[%clk 00:00:20]} {[%emt 00:00:48]} 36. d6 {[%clk
00:01:11]} {[%emt 00:00:05]} Nf3 {[%clk 00:00:11]} {[%emt 00:00:14]} 37. Re7
{[%clk 00:01:12]} {[%emt 00:00:05]} Ng5 {[%clk 00:00:12]} {[%emt 00:00:03]} 38.
Rb7 {[%clk 00:01:11]} {[%emt 00:00:06]} Nf7 {[%clk 00:00:09]} {[%emt 00:00:09]}
39. Rxf7+ {[%clk 00:01:11]} {[%emt 00:00:05]} Ke8 {[%clk 00:00:10]} {[%emt
00:00:03]} 40. Rxg7 {[%clk 00:01:13]} {[%emt 00:00:03]} 1-0